fUSD/lending_fUSD_20241027
["ID","MTS","AMOUNT","RATE_DAILY","PERIOD"]
[340905832,1730055040657,-798.48525087,0.00037728,2]
[340906086,1730055043167,-1095.19474913,0.00037728,2]
[340906088,1730055043176,-1720.62,0.00037748,2]
[340906090,1730055043186,-178.8,0.00038081,2]
[340906092,1730055043196,-158.15,0.00038151,2]
[340906094,1730055043205,-1959.36,0.00038356,2]
[340906096,1730055043215,-500.0,0.000384,14]
[340906098,1730055043224,-1100.0,0.000385,14]
[340906100,1730055043233,-262.4842,0.00038578,2]
[340906102,1730055043242,-1011.45671152,0.00038578,2]
[340906104,1730055043254,-1386.36783975,0.00038578,2]
[340906106,1730055043265,-381.63935859,0.00038578,2]
[340906120,1730055043403,-13.51289014,0.00038578,2]
[340906121,1730055043413,-1700.0,0.000386,14]
[340906123,1730055043423,-11594.40809387,0.00038678,2]
[340906270,1730055046324,-370.47636696,0.0003862,2]
[340906271,1730055046336,-18405.58190613,0.00038678,2]
[340906273,1730055046348,-7330.97,0.00038678,2]
[340906274,1730055046359,-6343.83,0.00038678,2]
[340906276,1730055046369,-2200.0,0.000387,14]
[340906277,1730055046378,-1814.4439,0.0003879,2]
[340906278,1730055046387,-2012.4942,0.0003879,2]
[340906279,1730055046396,-2800.0,0.000388,14]
[340906280,1730055046406,-4335.02602875,0.000388,15]
[340906281,1730055046415,-10518.8806,0.000389,2]
[340906282,1730055046426,-293.238,0.000389,2]
[340906283,1730055046435,-6671.3772,0.000389,2]
[340906284,1730055046445,-7140.54813169,0.000389,2]
[340906286,1730055046456,-500.0,0.000389,14]
[340906288,1730055046466,-251.75468914,0.000389,2]
[340906290,1730055046475,-907.86420932,0.000389,2]
[340906292,1730055046484,-249.88523154,0.000389,2]
[340906294,1730055046493,-6324.90555248,0.000389,2]
[340906296,1730055046502,-509.17054186,0.000389,2]
[340906298,1730055046511,-267109.782487,0.0003899,9]
[340906299,1730055046520,-214.0,0.00039,5]
[340906302,1730055046529,-314203.86885886,0.00039,2]
[340906304,1730055046541,-236931.62753464,0.00039,2]
[340906321,1730055046643,-35271.91976445,0.00039,2]
[340907124,1730055095340,1000.0,0.00043929,30]
[340907125,1730055095906,1000.0,0.00043929,30]
[340907126,1730055096463,553.80462442,0.00043929,30]
[340907140,1730055913650,250.0,0.00015,2]
[340907160,1730056145694,-2290.43286288,0.00015242,2]
[340907161,1730056145717,-157.9,0.00015342,2]
[340907162,1730056145740,-157.85,0.00015342,2]
[340907163,1730056145762,-2290.43286287,0.00015802,2]
[340907164,1730056145785,-2290.43286287,0.00016362,2]
[340907165,1730056145808,-970.84645821,0.00016462,2]
[340907166,1730056145831,-154.75,0.00016712,2]
[340907168,1730056167943,-479.0,0.000178,2]
[340907172,1730056214315,-250.0,0.00034526,120]
[340907173,1730056214339,-8300.0,0.0004,120]
[340907174,1730056214358,-70570.0,0.0004,120]
[340907184,1730056232512,-199.71,0.00019178,2]
[340907185,1730056232522,-150.99,0.00019726,2]
[340907186,1730056232532,-184.91,0.00028805,2]
[340907187,1730056232541,-5651.01,0.00028805,2]
[340907188,1730056232551,-157.9,0.00030548,2]
[340907189,1730056232560,-466.47,0.00032738,2]
[340907190,1730056232569,-1163.38,0.00033407,2]
[340907191,1730056232579,-950.76,0.00033473,2]
[340907192,1730056232588,-449.31,0.00033473,2]
[340907193,1730056232597,-968.11,0.00033473,2]
[340907194,1730056232606,-349.54,0.0003388,2]
[340907195,1730056232616,-13519.25,0.00033914,2]
[340907196,1730056232625,-23890.0,0.0003404,2]
[340907197,1730056232635,-150.0,0.00034084,7]
[340907198,1730056232645,-200.0,0.00034243,2]
[340907199,1730056232654,-327.01,0.0003428,2]
[340907200,1730056232663,-441.13,0.00034374,2]
[340907201,1730056232673,-922.58,0.00034896,2]
[340907202,1730056232682,-200.0,0.00034943,2]
[340907203,1730056232691,-150.0,0.00034961,2]
[340907204,1730056232701,-466.47,0.00035002,2]
[340907205,1730056232710,-500.0,0.00036069,2]
[340907206,1730056232720,-158.57,0.00036159,2]
[340907207,1730056232729,-1000.0,0.00036505,2]
[340907208,1730056232738,-466.47,0.00037266,2]
[340907209,1730056232748,-262.08,0.00037354,2]
[340907210,1730056232758,-207.832,0.00037499,48]
[340907211,1730056232768,-1000.0,0.00038256,2]
[340907212,1730056232778,-2500.0,0.00038256,2]
[340907213,1730056232787,-152346.72,0.00038356,2]
[340907214,1730056232797,-3901.52342592,0.00038529,15]
[340907215,1730056232806,-165.12,0.00038629,2]
[340907216,1730056232816,-5145.97,0.00038678,2]
[340907217,1730056232826,-312.0,0.0003878,41]
[340907218,1730056232835,-33901.6147,0.0003889,2]
[340907219,1730056232844,-507.5363,0.0003889,2]
[340907220,1730056232854,-819.6458744,0.000389,2]
[340907221,1730056232863,-605.2428062,0.000389,2]
[340907222,1730056232873,-167.83645944,0.000389,2]
[340907223,1730056232882,-139088.46334712,0.0003899,9]
[340907224,1730056232894,-81462.20329673,0.0003899,9]
[340907228,1730056238330,-2002.08660001,0.0003899,9]
[340907229,1730056238457,-1351.08,0.0003899,9]
[340907288,1730056240489,-1015.32070749,0.0003899,9]
[340907302,1730056240670,-21046.42840165,0.0003899,9]
[340907303,1730056240679,-188.0,0.00039,5]
[340907304,1730056240688,-234.03647073,0.00039,4]
[340907305,1730056240698,-14886.18785751,0.00039,2]
[340907306,1730056240716,-597.4599975,0.00039,2]
[340907308,1730056240729,-1244.16500001,0.00039,2]
[340907467,1730057108628,36728.49122517,0.00015,2]
[340907468,1730057108659,177750.0,0.00015,2]
[340907469,1730057108685,3002.53436823,0.00015,2]
[340907470,1730057282442,79791.9846667,0.00015,2]
[340907492,1730057431723,-266.0,0.000179,2]
[340907493,1730057431735,-260.0,0.00019725,2]
[340907494,1730057431745,-4032.08455895,0.00022,2]
[340907495,1730057431754,-320.0,0.00023,10]
[340907497,1730057431763,-1196.91544105,0.000232,2]
[340907499,1730057431776,-506.53656721,0.000232,2]
[340907500,1730057431786,-163.1,0.00023732,2]
[340907502,1730057431795,-30.36343279,0.00027397,7]
[340907555,1730057439655,-119.63656721,0.00027397,7]
[340907556,1730057439665,-502.38843279,0.00029,3]
[340907557,1730057439688,-1256.82156721,0.00029,3]
[340907558,1730057439699,-596.5,0.0003,3]
[340907559,1730057439709,-396.49,0.00035909,2]
[340907560,1730057439718,-212.8289999,0.000364,2]
[340907561,1730057439729,-396.49,0.00038173,2]
[340907562,1730057439739,-250.0,0.00038255,120]
[340907563,1730057439749,-3277.0976,0.00038256,2]
[340907564,1730057439759,-163.5,0.00038302,2]
[340907565,1730057439768,-1000.0,0.00038506,2]
[340907566,1730057439778,-209.66,0.00038545,2]
[340907567,1730057439788,-152.0,0.00038591,3]
[340907568,1730057439797,-52088.61183289,0.0003861,2]
[340907607,1730057443137,-668.94694944,0.0003861,2]
[340907619,1730057656639,1000.0,0.00014022,2]
[340907742,1730058631906,-155.23,0.00015342,2]
[340907743,1730058631916,-158.22,0.00015342,2]
[340907744,1730058631925,-1000.0,0.00015774,2]
[340907745,1730058631934,-1000.0,0.00017527,2]
[340907746,1730058631943,-1000.0,0.0001928,2]
[340907747,1730058631952,-1000.0,0.00021033,2]
[340907748,1730058631961,-155.23,0.00024031,2]
[340907749,1730058631970,-155.23,0.0003272,2]
[340907750,1730058631980,-158.22,0.0003272,2]
[340907752,1730058631988,-356.84,0.00035193,2]
[340907754,1730058631997,-164.866,0.00036016,44]
[340907755,1730058632006,-220.387,0.00036016,44]
[340907756,1730058632015,-213.41,0.00036787,2]
[340907757,1730058632024,-167.72,0.00036816,2]
[340907758,1730058632033,-250.0,0.00036923,120]
[340907759,1730058632042,-150.0,0.00037177,7]
[340907760,1730058632051,-200.0,0.00037324,2]
[340907761,1730058632060,-356.84,0.00037457,2]
[340907762,1730058632069,-21045.26736178,0.0003823,2]
[340907763,1730058632078,-270.102804,0.00038498,40]
[340907764,1730058632087,-200.0,0.0003861,2]
[340907765,1730058632096,-167.72,0.00038657,2]
[340907766,1730058632106,-676.849,0.0003889,2]
[340907768,1730058632115,-155.22810207,0.000389,2]
[340907770,1730058632124,-516.16633456,0.000389,2]
[340907772,1730058632134,-3853.33209031,0.000389,15]
[340907774,1730058632143,-546.43058294,0.000389,2]
[340907776,1730058632152,-167.83645942,0.000389,2]
[340907778,1730058632161,-500.0,0.00038973,2]
[340907780,1730058632170,-177.55,0.0003899,2]
[340907782,1730058632179,-200.0,0.00038996,2]
[340907784,1730058632189,-150.01,0.00038999,2]
[340907786,1730058632198,-169.0,0.00039,5]
[340907788,1730058632207,-4491.93181568,0.00039,2]
[340907791,1730058632221,-326.91173175,0.00039,2]
[340907801,1730058638066,-157.0,0.00039,5]
[340907802,1730058638075,-1845.01769999,0.00039,2]
[340907814,1730058640006,-960.42,0.00039,2]
[340907815,1730058640058,-135928.16934245,0.00039,2]
[340907817,1730058640115,-997.94,0.00039,2]
[340907895,1730058643014,-3263.84947864,0.00039,2]
[340907906,1730058645965,-0.01592876,0.00039,2]
[340907909,1730059067266,-250.0,0.00038865,120]
[340907910,1730059072921,5042.66436501,0.00043921,30]
[340907911,1730059113466,176.31,0.00038918,53]
[340907912,1730059138004,-151.0,0.000398,14]
[340907913,1730059138024,-205.799372,0.000398,14]
[340907914,1730059138044,-205.799372,0.000398,14]
[340907915,1730059138063,-151.0,0.000398,14]
[340907916,1730059138083,-151.0,0.000398,14]
[340907917,1730059138103,-151.0,0.000398,14]
[340907918,1730059138121,-151.0,0.000398,14]
[340907919,1730059138140,-151.0,0.000398,14]
[340907920,1730059138157,-151.0,0.000398,14]
[340907921,1730059138332,-151.0,0.000398,14]
[340907922,1730059138352,-152.845549,0.000398,14]
[340907923,1730059138370,-152.845549,0.000398,14]
[340907924,1730059138389,-295.520937,0.000398,14]
[340907925,1730059138407,-151.0,0.000398,14]
[340907926,1730059138426,-151.0,0.000398,14]
[340907927,1730059138444,-202.674552,0.000398,14]
[340907928,1730059138463,-151.0,0.000398,14]
[340907929,1730059138481,-151.0,0.000398,14]
[340907930,1730059138501,-1902.7868,0.000398,14]
[340907931,1730059138520,-1902.7868,0.000398,14]
[340907932,1730059138540,-151.0,0.000398,14]
[340907933,1730059138559,-151.0,0.000398,14]
[340907934,1730059138579,-178.879633,0.000398,14]
[340907935,1730059138598,-178.879633,0.000398,14]
[340907936,1730059165719,-92564.41595983,0.0004,120]
[340907937,1730059165739,-49516.45584317,0.0004,30]
[340907942,1730059472278,-250.0,0.00038241,120]
[340907943,1730059472299,-99750.0,0.0004,30]
[340907948,1730059832122,-157.85,0.00015342,2]
[340907951,1730059832133,-431.0,0.000177,2]
[340907952,1730059832144,-161.05013726,0.00019725,2]
[340907954,1730059832159,-138.94986274,0.00019725,2]
[340907955,1730059832168,-300.0,0.00021484,2]
[340907957,1730059832177,-416.5673,0.00035,2]
[340907959,1730059832186,-321.15,0.00036503,2]
[340907960,1730059832195,-275.68283726,0.00038,6]
[340907961,1730059832206,-724.31716274,0.00038,6]
[340907962,1730059832216,-1235.0,0.00038,6]
[340907963,1730059832226,-1002.0,0.00038,6]
[340907964,1730059832236,-61.81431652,0.00038,2]
[340907965,1730059832247,-659.19568348,0.00038,2]
[340907966,1730059832256,-213.41,0.0003843,2]
[340907967,1730059832266,-235.59122995,0.0003843,2]
[340907972,1730059839783,-581.77338334,0.0003843,2]
[340907973,1730059839796,-1746.32999999,0.0003843,2]
[340908033,1730060441325,150.0,0.00015,2]
[340908079,1730060588231,1000.0,0.00043921,30]
[340908099,1730060664062,423.0,0.00043921,30]
[340908121,1730060755359,15012.0,0.00015,10]
[340908196,1730061040381,-155.23,0.00015342,2]
[340908198,1730061040391,-253.0,0.000176,2]
[340908200,1730061040400,-714.94000001,0.0002,2]
[340908270,1730061045962,-86963.33378337,0.0002,2]
[340908272,1730061045972,-2754.90790466,0.0002,7]
[340908273,1730061045982,-200.0,0.00023,2]
[340908274,1730061045992,-5948.23562268,0.000232,2]
[340908275,1730061046001,-155.23,0.00026401,2]
[340908276,1730061046010,-2324.24,0.00026401,2]
[340908277,1730061046020,-305.09,0.00036658,2]
[340908278,1730061046029,-155.23,0.0003746,2]
[340908279,1730061046038,-840.0,0.0003828,2]
[340908280,1730061046048,-167.72,0.00038281,2]
[340908281,1730061046057,-150.0,0.00038473,7]
[340908282,1730061046067,-250.0,0.00038546,120]
[340908283,1730061046076,-152.0,0.00038591,3]
[340908284,1730061046085,-571.23,0.00038738,2]
[340908285,1730061046095,-160.0,0.00038806,2]
[340908286,1730061046104,-1000.0,0.000389,7]
[340908287,1730061046114,-1000.0,0.000389,7]
[340908288,1730061046123,-1000.0,0.000389,7]
[340908289,1730061046132,-1101.175,0.000389,53]
[340908290,1730061046142,-168.738,0.000389,53]
[340908291,1730061046151,-3467.99888127,0.000389,15]
[340908292,1730061046160,-167.83645942,0.000389,2]
[340908293,1730061046169,-364.2870553,0.000389,2]
[340908294,1730061046178,-481.75524558,0.000389,2]
[340908295,1730061046187,-305.09,0.00038922,2]
[340908296,1730061046196,-32285.9153326,0.0003899,9]
[340908297,1730061046205,-536345.66068462,0.00039,2]
[340908306,1730061215114,-250.0,0.00038577,120]
[340908307,1730061215137,-925.2966803,0.00038999,30]
[340908308,1730061215158,-175.31,0.00039006,120]
[340908309,1730061215178,-76149.3933197,0.0004,30]
[340908323,1730061845913,-250.0,0.00037908,120]
[340908324,1730061862728,-197.12020106,0.0004,120]
[340908325,1730061862752,-29802.87979894,0.0004,120]
[340908326,1730061870340,-30000.0,0.0004,120]
[340908327,1730061879958,-10767.12020106,0.0004,120]
[340908328,1730061879985,-8300.0,0.0004,120]
[340908339,1730062139588,250.0,0.00037691,120]
[340908347,1730062232101,-158.22,0.00015342,2]
[340908348,1730062232112,-157.92,0.00015342,2]
[340908349,1730062232127,-270.59414124,0.00015635,2]
[340908350,1730062232136,-274.58,0.0003603,2]
[340908351,1730062232145,-194.48,0.00037635,2]
[340908352,1730062232154,-150.0,0.00037744,7]
[340908353,1730062232163,-2704.52,0.00038193,2]
[340908354,1730062232172,-167.72,0.00038267,2]
[340908355,1730062232181,-482.69438302,0.00038267,2]
[340908356,1730062232196,-612.49561698,0.00038267,2]
[340908357,1730062232205,-50.98287011,0.00038269,2]
[340908358,1730062232216,-127.81712989,0.00038269,2]
[340908359,1730062232225,-233.54841779,0.00038294,2]
[340908360,1730062232252,-41.03158221,0.00038294,2]
[340908361,1730062232261,-1000.0,0.00038321,2]
[340908362,1730062232270,-1959.36,0.00038356,2]
[340908363,1730062232279,-2100.0,0.000384,14]
[340908364,1730062232288,-1720.62,0.00038498,2]
[340908365,1730062232298,-3066.94154181,0.000385,2]
[340908366,1730062232309,-1247.86,0.000385,2]
[340908367,1730062232325,-454.92529219,0.000385,2]
[340908368,1730062232336,-12117.30252774,0.000385,2]
[340908369,1730062232358,-1326.73024974,0.000385,2]
[340908370,1730062232370,-1096.73776496,0.000385,2]
[340908371,1730062232381,-1238.04,0.000385,2]
[340908372,1730062232397,-1356.19569135,0.000385,2]
[340908373,1730062232408,-2451.53311878,0.000385,2]
[340908374,1730062232419,-1257.46454135,0.000385,2]
[340908375,1730062232431,-1182.71091713,0.000385,2]
[340908376,1730062232442,-1166.74501009,0.000385,2]
[340908377,1730062232454,-1157.53293378,0.000385,2]
[340908380,1730062232467,-1580.49409564,0.000385,2]
[340908381,1730062232479,-3040.13081235,0.000385,2]
[340908385,1730062232533,-14206.94968238,0.000385,2]
[340908387,1730062232545,-4064.67310528,0.000385,2]
[340908403,1730062238214,-395.76,0.000385,2]
[340908404,1730062238227,-6698.81678178,0.000385,2]
[340908405,1730062238270,-449.17212671,0.000385,2]
[340908406,1730062238328,-2100.92790881,0.000385,2]
[340908407,1730062238339,-416.20741747,0.000385,2]
[340908408,1730062238387,-2837.4908233,0.000385,2]
[340908409,1730062238402,-930.51620209,0.000385,2]
[340908410,1730062238413,-5808.32989986,0.000385,2]
[340908411,1730062238424,-586.1799998,0.000385,2]
[340908412,1730062238435,-2001.51387,0.000385,2]
[340908413,1730062238447,-1667.20366937,0.000385,2]
[340908414,1730062238458,-24094.91401624,0.000385,2]
[340908415,1730062238468,-880.94,0.000385,51]
[340908416,1730062238477,-4300.0,0.000385,14]
[340908417,1730062238486,-6500.0,0.000386,14]
[340908418,1730062238495,-8700.0,0.000387,14]
[340908419,1730062238505,-223.42164802,0.000387,2]
[340908420,1730062238514,-3121.19899317,0.000387,15]
[340908421,1730062238523,-7379.0564779,0.000387,2]
[340908422,1730062238532,-409.1268066,0.00038773,5]
[340908423,1730062238541,-177.44534171,0.00038799,15]
[340908424,1730062238551,-198.8573278,0.00038799,15]
[340908425,1730062238562,-53.69540657,0.00038799,15]
[340908426,1730062238571,-235.69869843,0.00038799,15]
[340908437,1730062240591,-264.30130157,0.00038799,15]
[340908438,1730062240600,-474.89450404,0.00038799,15]
[340908440,1730062242942,-25.10549596,0.00038799,15]
[340908442,1730062242952,-250.0,0.00038799,15]
[340908444,1730062242963,-99.38950403,0.00038799,15]
[340908528,1730062243484,-400.61049597,0.00038799,15]
[340908530,1730062243493,-307.67810353,0.00038799,15]
[340908756,1730062277485,175.3,0.00038496,120]
[340908757,1730062450922,551.0568693,0.00038155,120]
[340908758,1730062667572,250.0,0.00037861,120]
[340908763,1730063119773,250.0,0.00015,2]
[340908764,1730063159643,250.0,0.00037604,120]
[340908774,1730063432314,-388.0,0.000175,2]
[340908775,1730063432326,-264.99,0.0003562,2]
[340908776,1730063432337,-291.31,0.0003758,2]
[340908777,1730063432348,-155.37,0.00037649,2]
[340908778,1730063432358,-150.0,0.00037678,7]
[340908779,1730063432367,-167.72,0.00037715,2]
[340908780,1730063432376,-8614.64,0.00037835,4]
[340908781,1730063432385,-264.99,0.00037883,2]
[340908782,1730063432394,-12594.556,0.00038,2]
[340908783,1730063432403,-1200.68,0.00038,10]
[340908784,1730063432412,-820.91,0.00038,2]
[340908785,1730063432421,-526.39,0.00038075,2]
[340908786,1730063432430,-1000.0,0.00038157,2]
[340908787,1730063432439,-756.71,0.00038253,51]
[340908788,1730063432448,-300.0,0.00038255,2]
[340908789,1730063432457,-262.4842,0.00038256,2]
[340908790,1730063432468,-1011.4567,0.00038256,2]
[340908791,1730063432476,-84594.91,0.00038356,2]
[340908792,1730063432485,-1000.0,0.000384,14]
[340908793,1730063432494,-2100.0,0.000385,14]
[340908794,1730063432503,-3200.0,0.000386,14]
[340908795,1730063432513,-2857.41781793,0.0003869,15]
[340908796,1730063432522,-538.4124127,0.0003869,2]
[340908797,1730063432532,-1000.0,0.0003869,2]
[340908798,1730063432541,-166.19911231,0.000387,2]
[340908799,1730063432550,-593.1711,0.000387,2]
[340908800,1730063432559,-169.69717311,0.000387,2]
[340908801,1730063432568,-4300.0,0.000387,14]
[340908802,1730063432578,-227.64346194,0.000387,2]
[340908803,1730063432587,-753.92,0.0003877,3]
[340908805,1730063432596,-500.0,0.00038773,2]
[340908807,1730063432605,-122523.414852,0.0003878,9]
[340908809,1730063432615,-442.32189647,0.00038789,15]
[340908810,1730063432623,-71128.33762567,0.0003879,9]
[340908812,1730063432635,-14638.05277043,0.0003879,9]
[340908814,1730063432644,-13870.937865,0.0003879,9]
[340908815,1730063432652,-478.9705354,0.00038799,10]
[340908816,1730063432663,-155.55300825,0.00038799,7]
[340908818,1730063432672,-156.0,0.000388,5]
[340908819,1730063432681,-3823.3298269,0.000388,2]
[340908820,1730063432699,-3581.94280001,0.000388,2]
[340908821,1730063432718,-2331.32555382,0.000388,2]
[340908825,1730063438402,-1171.97606687,0.000387,2]
[340908826,1730063438512,-3747.39491839,0.000387,2]
[340908827,1730063438521,-10876.36488633,0.000388,2]
[340908828,1730063438533,-2212.02777319,0.000388,2]
[340908829,1730063438570,-1336.04561394,0.000388,2]
[340908830,1730063438581,-1901.63438384,0.000388,2]
[340908831,1730063438592,-2402.24478436,0.000388,2]
[340908832,1730063438631,-250.0,0.000388,2]
[340908833,1730063438644,-697.426834,0.000388,2]
[340908834,1730063438656,-2404.3445087,0.000388,2]
[340908835,1730063438667,-661.74512776,0.000388,2]
[340908836,1730063438678,-1934.58823766,0.000388,2]
[340908837,1730063438689,-15216.86904825,0.000388,2]
[340908838,1730063438700,-301.11415239,0.000388,2]
[340908991,1730063440428,-6726.63800881,0.000388,2]
[340909452,1730063781457,250.0,0.00038009,120]
[340909453,1730064052483,1324.58322566,0.00043926,120]
[340909456,1730064285344,250.0,0.00037386,120]
[340909460,1730064479550,10642.88883161,0.000145,3]
[340909461,1730064488750,160.36927506,0.00013,4]
[340909466,1730064631454,-155.23,0.00015342,2]
[340909467,1730064631464,-158.22,0.00015342,2]
[340909468,1730064631474,-240.0,0.000179,2]
[340909469,1730064631486,-959.61113433,0.00022,2]
[340909470,1730064631495,-709.56962595,0.000232,2]
[340909471,1730064631506,-1583.539405,0.000232,2]
[340909472,1730064631516,-1753.08841491,0.000232,2]
[340909473,1730064631525,-1635.5215029,0.00023922,2]
[340909474,1730064631534,-1046.66797887,0.0002495,2]
[340909475,1730064631543,-1036.08,0.00030548,2]
[340909476,1730064631552,-155.23,0.00030548,2]
[340909477,1730064631561,-269.44,0.00035463,2]
[340909478,1730064631570,-153.54,0.00037009,2]
[340909479,1730064631580,-489.59804192,0.00037205,2]
[340909480,1730064631591,-450.037073,0.00037205,2]
[340909481,1730064631601,-60.36488508,0.00037205,2]
[340909482,1730064631610,-150.99,0.00037205,2]
[340909483,1730064631620,-150.0,0.00037405,2]
[340909484,1730064631629,-150.0,0.00037473,7]
[340909485,1730064631638,-41170.99,0.00037541,2]
[340909486,1730064631647,-164.26439015,0.00037573,5]
[340909487,1730064631656,-151.09,0.00037641,2]
[340909488,1730064631665,-800.08,0.00037641,2]
[340909489,1730064631674,-1760.57,0.00037723,2]
[340909490,1730064631683,-269.44,0.00037727,2]
[340909491,1730064631692,-164.5,0.00037728,2]
[340909492,1730064631701,-151.09,0.00037735,2]
[340909493,1730064631710,-151.09,0.00037829,2]
[340909494,1730064631719,-605.368,0.0003822,51]
[340909495,1730064631729,-1694.486,0.00038256,2]
[340909496,1730064631744,-69545.87,0.00038356,2]
[340909497,1730064631755,-500.0,0.000384,14]
[340909499,1730064631764,-5560.82163412,0.0003842,2]
[340909501,1730064631774,-1100.0,0.000385,14]
[340909503,1730064631783,-451.0107,0.0003858,2]
[340909505,1730064631792,-331.8703,0.0003858,2]
[340909506,1730064631803,-376.96,0.0003859,3]
[340909507,1730064631812,-1000.0,0.000386,2]
[340909508,1730064631820,-1700.0,0.000386,14]
[340909509,1730064631830,-2500.0,0.000386,2]
[340909510,1730064631839,-155.93080021,0.00038612,30]
[340909511,1730064631848,-523.536791,0.0003868,2]
[340909512,1730064631857,-1020.4687,0.0003868,2]
[340909513,1730064631866,-203.6619,0.0003868,2]
[340909514,1730064631875,-5875.9462,0.0003868,2]
[340909515,1730064631884,-6322.07026044,0.0003868,2]
[340909516,1730064631898,-29026.19363956,0.0003868,2]
[340909517,1730064631907,-19092.39108444,0.000387,2]
[340909518,1730064631919,-48463.21587229,0.000387,2]
[340909519,1730064631935,-9110.77520033,0.000387,2]
[340909520,1730064631946,-4561.03206032,0.000387,2]
[340909521,1730064631958,-1756.54508262,0.000387,2]
[340909522,1730064631967,-2200.0,0.000387,14]
[340909523,1730064631979,-541.35803814,0.000387,2]
[340909524,1730064631991,-4147.88585205,0.000387,2]
[340909525,1730064632000,-33.57069961,0.00038773,2]
[340909526,1730064632018,-466.42930039,0.00038773,2]
[340909527,1730064632027,-151.000001,0.0003878,14]
[340909528,1730064632036,-92.30314315,0.0003878,9]
[340909529,1730064632047,-5088.12644554,0.0003878,9]
[340909530,1730064637589,-1101.02903969,0.0003878,9]
[340909531,1730064637650,-19700.8222761,0.0003878,9]
[340909532,1730064637660,-575.30635287,0.0003878,9]
[340909533,1730064637671,-675.54813812,0.0003878,9]
[340909534,1730064637682,-32846.49489622,0.0003878,9]
[340909545,1730064637932,-2004.09679756,0.0003878,9]
[340909547,1730064637944,-3293.11075829,0.0003878,9]
[340909565,1730064642287,-510.5850209,0.0003878,9]
[340909577,1730064642700,-1960.54864135,0.0003878,9]
[340909579,1730064642713,-423.68260626,0.0003878,9]
[340909625,1730064818121,250.0,0.00038072,120]
[340909626,1730064959753,160.21,0.00038161,120]
[340909627,1730064995045,210.36,0.00037885,120]
[340909628,1730065217649,30000.0,0.00043931,30]
[340909631,1730065650446,250.0,0.00037502,120]
[340909643,1730065831709,-157.92,0.00015342,2]
[340909644,1730065831718,-260.35,0.00035716,2]
[340909645,1730065831727,-196.84,0.00037392,2]
[340909646,1730065831768,-417.23,0.00037392,2]
[340909647,1730065831777,-150.0,0.00037436,7]
[340909648,1730065831787,-153.54,0.00037447,2]
[340909649,1730065831795,-345.17,0.00037502,2]
[340909650,1730065831828,-654.83,0.00037502,2]
[340909651,1730065831838,-166.399624,0.00037517,2]
[340909674,1730065837767,-83.600376,0.00037517,2]
[340909675,1730065837778,-1271.19994809,0.00037578,2]
[340909676,1730065838095,-3699.92785534,0.00037578,2]
[340909727,1730065839607,-5591.6051556,0.00037578,2]
[340909728,1730065839671,-435.63443099,0.00037578,2]
[340909729,1730065839729,-24112.93260998,0.00037578,2]
[340909730,1730065839738,-200.0,0.0003758,2]
[340909731,1730065839747,-322.11,0.00037607,2]
[340909732,1730065839757,-798.49,0.00037607,2]
[340909733,1730065839766,-168.02,0.00037609,2]
[340909734,1730065839775,-161.95,0.00037682,2]
[340909735,1730065839784,-260.35,0.0003798,2]
[340909736,1730065839793,-484.294,0.00038072,50]
[340909737,1730065839802,-200.0,0.000384,14]
[340909738,1730065839811,-500.0,0.000385,14]
[340909739,1730065839821,-152.0,0.00038591,3]